Cogmind - Beta 17 @@@ ROGUE MODE // 2026.08.14 @ 15:12:23 Player: Mingebag Result: Destroyed by S-10 Pest with Light Assault Rifle Performance ------------- Evolutions (0) 0 Regions Visited (1) 200 Robots Destroyed (27) 135 Value Destroyed (577) 577 Prototype IDs (5) 100 Alien Tech Used (0) 0 Bonus (0) 0 TOTAL SCORE: 1012 Bonus ------- None Cogmind --------- Core Integrity 0/250 Matter 295/300 Energy 125/125 System Corruption 0% Temperature Cool (50) Movement Walking (190) Ox1 Location -10/Materials Parts ------- > --- POWER (1) -------- Light Ion Engine > --- PROPULSION (2) --- Aluminum Leg Aluminum Leg > --- UTILITY (2) ------ Large Storage Unit Signal Interpreter > --- WEAPON (2) ------- Medium Laser > --- INVENTORY (15) --- Light Treads Aluminum Leg Aluminum Leg Heat Sink Small Storage Unit High-capacity Battery (250) Large Matter Pod (150) Sensor Array Sensor Array Signal Interpreter Terrain Scanner Propulsion Shielding Peak State ------------ > --- POWER ------------ Ion Engine > --- PROPULSION ------- Light Treads Light Treads > --- UTILITY ---------- Heat Sink Huge Storage Unit > --- WEAPON ----------- Assault Rifle Light Assault Rifle > --- INVENTORY -------- Ion Engine Ion Engine Aluminum Leg Aluminum Leg Aluminum Leg Small Storage Unit Signal Interpreter Medium Laser Small Laser Light Assault Rifle [Rating: 8] Favorites ----------- Power Ion Engine Engine Ion Engine Propulsion Light Treads Treads Light Treads Leg Aluminum Leg Utility Large Storage Unit Device Heat Sink Storage Large Storage Unit Processor Signal Interpreter Weapon Assault Rifle Energy Gun Medium Laser Ballistic Gun Assault Rifle Special Melee Weapon Datajack Build | -11 -10 ------- Run | Yrd Mat Slots Evolved . | . . Power . | . . Propulsion . | . . Utility . | . . Weapon . | . . Parts Attached 19 | 6 13 Power 4 | 1 3 Engine 4 | 1 3 Core . | . . Reactor . | . . Propulsion 5 | 2 3 Treads 2 | 2 . Leg 3 | . 3 Wheel . | . . Hover . | . . Flight . | . . Utility 5 | 1 4 Device 1 | . 1 Storage 3 | 1 2 Processor 1 | . 1 Hackware . | . . Protection . | . . Artifact . | . . Weapon 5 | 2 3 Energy Gun 1 | . 1 Energy Cannon . | . . Ballistic Gun 3 | 2 1 Ballistic Cannon . | . . Launcher . | . . Special Weapon . | . . Impact Weapon . | . . Slashing Weapon . | . . Piercing Weapon . | . . Special Melee Weapon 1 | . 1 Unidentified Prototypes . | . . Parts Lost 7 | . 7 Power 2 | . 2 Propulsion 2 | . 2 Utility . | . . Weapon 3 | . 3 Highest Loss Streak 3 | . 3 To Critical Strikes 1 | . 1 Average Backups 10 | 2 11 Power 1 | . 1 Propulsion 3 | 1 3 Utility 4 | . 5 Weapon 1 | . 1 Tool/Special . | . . Unused Backups 13 | . 13 Power 1 | . 1 Propulsion 2 | . 2 Utility 9 | . 9 Weapon 1 | . 1 Tool/Special . | . . Average Slot Usage (%) 94 | . 94 Engine 14 | . 14 Treads 18 | . 18 Leg 9 | . 9 Storage 14 | . 14 Processor 9 | . 9 Energy Gun 6 | . 6 Ballistic Gun 17 | . 17 Special Melee Weapon 3 | . 3 Peak Build Rating 8 | 6 8 Average Rating 7 | 5 7 On Entrance 3 | . 6 Avg Prop Armor Cover (%) . | . . Naked Turns . | . . Heaviest Build 89 | 13 89 Greatest Support 40 | 40 40 Greatest Overweight (x) 2 | 2 2 Average Overweight (x) . | . . Largest Inventory Capacity 25 | 8 25 Average Capacity 16 | 7 17 Most Carried 15 | 4 15 Average Carried 10 | 2 11 Final Capacity 15 | 8 15 Final Carried 12 | 4 12 Class Distribution -------------------- 100% | Mutant Dominant Class ---------------- Mutant | -10/Materials Resources | -11 -10 ----------- Run | Yrd Mat Matter Collected 753 | 256 497 Remotely . | . . Salvage Created 758 | 18 740 Parts 49 | 3 46 Haulers Intercepted 1 | . 1 Recyclers Shooed 1 | . 1 Parts Field Recycled . | . . Retrieved Matter . | . . Parts Self-Destructed . | . . Prevented . | . . Parts Restored . | . . Kills | -11 -10 ------- Run | Yrd Mat Combat Hostiles Destroyed 19 | . 19 Guns 17 | . 17 AOE 2 | . 2 Classes Destroyed 8 | 1 7 Worker 1 | . 1 Tunneler 1 | 1 . Hauler 1 | . 1 Recycler 1 | . 1 Operator 1 | . 1 Watcher 3 | . 3 Swarmer 8 | . 8 Grunt 11 | . 11 Best Kill Streak 4 | 1 4 Combat Bots Only 3 | . 3 Max Kills in Single Turn 3 | 1 3 Gunslinging . | . . Exploded 2 | . 2 Melee . | . . Uniques/NPCs Destroyed . | . . Combat | -11 -10 -------- Run | Yrd Mat Hostile Shots Fired 138 | . 138 Missed 35 | . 35 Hits 103 | . 103 Projectile 103 | . 103 Critical Strikes 1 | . 1 Damage Taken 1150 | . 1150 Core 253 | . 253 Absorbed by Shields . | . . Core Remaining (%) 100 | 100 . Volleys Fired 96 | 5 91 Largest 2 | 2 2 Hottest 70 | 40 70 Shots Fired 164 | 10 154 Gun 164 | 10 154 Cannon . | . . Launcher . | . . Special . | . . Kinetic 118 | 10 108 Thermal 46 | . 46 Explosive . | . . Electromagnetic . | . . Robot Hit Streak 14 | 5 14 Robot Miss Streak 4 | 2 4 Penetration Max . | . . Secondary Targets . | . . Shots Hit Robots 101 | 6 95 Core Hits 47 | 2 45 Critical Kills . | . . Critical Parts Destroyed 1 | . 1 Critical Strikes 3 | . 3 Burn 2 | . 2 Destroy 1 | . 1 Melee Attacks 5 | . 5 Impact . | . . Slashing . | . . Piercing . | . . Sneak Attacks 2 | . 2 Combat Hostiles . | . . Follow-up Attacks . | . . Damage Inflicted 1425 | 72 1353 Guns 1096 | 72 1024 Cannons . | . . Explosions 329 | . 329 Melee . | . . Ramming . | . . Kinetic 781 | 72 709 Thermal 644 | . 644 Explosive . | . . Electromagnetic . | . . Impact . | . . Slashing . | . . Piercing . | . . Highest Corruption . | . . Average Corruption . | . . Corruption Purged . | . . Corruption Blocked . | . . Overload Shots . | . . Overflow Damage 166 | . 166 Projectiles . | . . Explosions 166 | . 166 Melee . | . . Knockbacks . | . . Impact . | . . Kinetic . | . . Secondary . | . . Self-Inflicted Damage 101 | . 101 Shots 1 | . 1 Rammed . | . . Targets Rammed . | . . Kicked . | . . Crushed . | . . Highest Temperature 85 | . 85 Average Temperature 22 | . 22 Received Heat Transfer 384 | . 384 Siege Activations . | . . Martial Activations . | . . Shielding Activations . | . . Robots Disrupted . | . . Combat Hostiles . | . . Robots Corrupted . | . . Combat Hostiles . | . . Parts Fried . | . . Impact Corruptions . | . . Robots Melted . | . . Combat Hostiles . | . . Parts Melted 1 | . 1 Heat Transferred 1273 | . 1273 Parts Sabotaged . | . . Parts Stolen . | . . Parts Stripped . | . . Power Chain Reactions . | . . Alert | -11 -10 ------- Run | Yrd Mat Maximum Alert Level 1 | . 1 Low Security (%) 96 | 100 96 Level 1 3 | . 3 Level 2 . | . . Level 3 . | . . Level 4 . | . . Level 5 . | . . High Security . | . . Max Security . | . . Peak Influence 230 | 5 230 Initial . | . . Average 56 | . 59 Influence Increases 625 | 5 620 Destroy 0b10 Robot/C 380 | . 380 Destroy 0b10 Robot/NC 40 | 5 35 Destroy Leader 98 | . 98 Successful Hack 23 | . 23 Disable Machine 45 | . 45 Destroy Structure 9 | . 9 Lose Combat Pursuer 30 | . 30 Influence Decreases 398 | 5 393 Time Decay 328 | 5 323 Lost Part 70 | . 70 Squads Dispatched 5 | . 5 Investigation 4 | . 4 Extermination . | . . Reinforcement 1 | . 1 Assault . | . . Garrison . | . . Intercept . | . . Searches Triggered . | . . Construction Impeded . | . . Haulers Reinforced . | . . Active Scanning Responses . | . . Cargo Convoy Interrupts . | . . Stealth | -11 -10 --------- Run | Yrd Mat Distress Signals . | . . Communications Jammed . | . . Distress Signals . | . . Times Spotted 33 | . 33 Peak Tracking Total 4 | . 4 Tactical Retreats 1 | . 1 Traps | -11 -10 ------- Run | Yrd Mat Traps Triggered 2 | . 2 Indirectly . | . . Trap Hack Attempts . | . . Triggered . | . . Disarmed . | . . Reprogrammed . | . . Reused . | . . Traps Extracted . | . . Installed . | . . Triggered . | . . Machines | -11 -10 ---------- Run | Yrd Mat Machines Disabled 3 | . 3 Max in Single Turn 3 | . 3 Machines Repaired . | . . Machines Dismantled . | . . Machines Sabotaged . | . . Overloaded Fab Kills . | . . Hacking | -11 -10 --------- Run | Yrd Mat Machines Accessed 5 | . 5 Terminals 4 | . 4 Fabricators . | . . Repair Stations . | . . Recycling Units 1 | . 1 Scanalyzers . | . . Garrison Access . | . . Total Hacks 14 | . 14 Successful 8 | . 8 Failed 6 | . 6 Catastrophic . | . . Database Lockouts . | . . Manual . | . . Terminals 10 | . 10 Fabricators . | . . Repair Stations . | . . Recycling Units 4 | . 4 Scanalyzers . | . . Garrison Access . | . . Terminal Hacks 6 | . 6 Prototype ID Bank 2 | . 2 Emergency Access Points 1 | . 1 Dispatch Records 1 | . 1 Zone Layout 2 | . 2 Fabricator Hacks . | . . Repair Station Hacks . | . . Recycling Unit Hacks 2 | . 2 Report Inventory 1 | . 1 Retrieve Components 1 | . 1 Scanalyzer . | . . Garrison Access Hacks . | . . Unauthorized Hacks . | . . Terminals . | . . Fabricators . | . . Repair Stations . | . . Recycling Units . | . . Scanalyzers . | . . Garrison Access . | . . Data Cores Recovered . | . . Used . | . . Hacking Detections 4 | . 4 Full Trace Events 3 | . 3 Feedback Events . | . . Feedback Blocked . | . . Robot Schematics Acquired . | . . Robots Built . | . . Authchips . | . . Time . | . . Total Robot Build Rating . | . . Part Schematics Acquired . | . . Parts Built . | . . Authchips . | . . Time . | . . Total Part Build Rating . | . . Part Studies Acquired . | . . Parts Repaired . | . . Time . | . . Parts Recycled . | . . Recycled Matter . | . . Retrieved Matter . | . . Retrieved Components 2 | . 2 Parts Scanalyzed . | . . Part Schematics Acquired . | . . Parts Damaged . | . . Bothacking | -11 -10 ------------ Run | Yrd Mat Used RIF Installer . | . . Robots Hacked 4 | . 4 Non-combat 3 | . 3 Combat 1 | . 1 Robot Hacks Applied 4 | . 4 parse_system 2 | . 2 no_distress 2 | . 2 Relay Couplers Released . | . . Fabnet Peak Effective % . | . . Robots Rewired . | . . Allies Hacked . | . . Hacks Repelled . | . . Allies | -11 -10 -------- Run | Yrd Mat Total Allies . | . . Largest Group . | . . Highest-Rated Group . | . . Highest-Rated Ally . | . . Total Orders . | . . Ally Attacks . | . . Total Damage . | . . Kills . | . . Allies Corrupted . | . . Allies Melted . | . . Intel | -11 -10 ------- Run | Yrd Mat Active Infowar (turns) . | . . Robot Analysis Total . | . . Derelict Logs Recovered . | . . Drone Launches . | . . Drone Recoveries . | . . Exploration | -11 -10 ------------- Run | Yrd Mat Turns Passed 1825 | 105 1720 Spaces Moved 747 | 52 695 Core 6 | 6 . Treads 519 | 46 473 Legs 222 | . 222 Wheels . | . . Hover . | . . Flight . | . . Fastest Speed 50 | 50 160 Average Speed 192 | 149 196 Slowest Speed 320 | 160 320 Overloaded Moves . | . . Propulsion Burnouts . | . . Robots Hopped . | . . Potential Cave-ins . | . . Cave-ins Triggered . | . . Exploration Rate (%) 46 | 3 89 Regions Visited 1 Branch Regions . Pre-discovered Areas . | . . Known Exits Taken . | . . Unknown Exits Taken 1 | 1 . Scrap Searched . | . . Spaces Dug . | . . Terrain Destroyed 8 | . 8 Melee . | . . Projectile . | . . AOE 8 | . 8 Terrain Rammed . | . . Walls Destroyed . | . . Machines Disabled . | . . Actions | -11 -10 --------- Run | Yrd Mat Total 974 | 69 905 Wait 73 | 1 72 Move 746 | 51 695 Hop . | . . Pick Up 27 | 6 21 Fast Attach 5 | 4 1 Attach 9 | 2 7 Detach 1 | . 1 Swap 5 | . 5 Drop 7 | . 7 Fire 96 | 5 91 Melee 5 | . 5 Ram . | . . Kick . | . . Crush . | . . Escape Stasis . | . . Rewire . | . . Trap . | . . Miscellaneous . | . . Route ------- -11/Scrapyard -10/Materials (discovered 5 exits: *Mat x3 / *Min x2) History --------- Turn | Location | Event 7 | -11/Scrapyard | Discovered new exit (range 16) 106 | -11/Scrapyard | Entered Materials 308 | -10/Materials | Build established: Mutant 443 | -10/Materials | Discovered new exit (range 12) 484 | -10/Materials | Discovered new exit (range 12) 657 | -10/Materials | Identified exit to Mines 694 | -10/Materials | Identified exit to Materials 990 | -10/Materials | Discovered exit to Materials (range 16) 1143 | -10/Materials | Discovered exit to Materials (range 9) 1248 | -10/Materials | Core integrity fell below 50% 1324 | -10/Materials | Core integrity fell below 20% 1354 | -10/Materials | Lost 3 parts (1p2w) 1491 | -10/Materials | Discovered exit to Mines (range 12) 1826 | -10/Materials | Destroyed by S-10 Pest with Light Assault Rifle Last Messages --------------- 01682_ Sneak attack on T-07 Excavator. 01682_ Jacked T-07 Excavator... >>no_distress Distress signal routine blocked. 01699_ K-01 Serf cleans the Pressure Siphon. 01726_ Aluminum Leg destroyed. 01735_ S-10 Pest destroyed. 01756_ Acquired 11 matter. 01758_ S-10 Pest destroyed. 01810_ Critical hit (Destroy). 01810_ Lgt. Ion Engine destroyed. 01812_ K-01 Serf cleans the Pressure Siphon. 01812_ Jacked S-10 Pest... >>parse_system Reading system data... 01816_ S-10 Pest destroyed. 01817_ Datajack destroyed. 01818_ K-01 Serf collects debris. 01820_ S-10 Pest destroyed. 01821_ K-01 Serf collects debris. Map ----- +----------------------------------------------------+ | | | | | ??????????????????????????????????????? | | ??????????????????????????????????????? | | ??????????????????????????????????????? | | ??????????????????????????????????????? | | ?????????????????????????????????????## | | ?????????????????????????????????????# | | ?????????????????????????????????????# | | ?????????????????????????????????????# | | ?????????????????????????????????????# | | ?????????????????????????????????????# | | ?????????????????????????????????????# | | ??????????????##+##??????????????????# | | ?????? # #???# + T #???????????# | | ?????? # #???# # #???????##### | | ??????## ##### # """ #???????#!! | | ??????# + """ #???????#!! | | ??????# # """ #???????#!! | | ??????# # #???????#!! | | ??????# ########???????#// | | ??????## ^ #??????????????#// | | ??????## """" #??????????????##### | | ?????? # """" #??????????????????# | | ?#???? # """" s#??????????????????# | | ?X ?? # ^%=@% #????????########### | | ?# ? # #????????# ## | | ?# # k ########?# """ ## | | ?? # ^ # """ #?# "Y # | | ???? + ^ # "T" #?# """ # | | ?????? # ! r # #?# + | | ???????###!^ + #?# """ # | | ?????????# # | #?# """ # | | ?????????# ^ #/ #?# """ ## | | ?????????# ########?# ## | | ??????#### u################### | | ??????# | | ??????# < """" ##### | | ??????# """" == #???# | | ??????#### """"% #####%######/###### | | ?????????# ######+## ## | | ?????????# # ==[# ## | | ?????????# ! # """ # ## | | ?????????# "Y" + """ # ## | | ???####### """ # """ # ## | | ??##!! !## % # + ## | | ??#! !# ######### ## | | ??# # ###+####?????# # | | ??### ### # #?????########### | | ????# #?# # #???????????????# | +----------------------------------------------------+ Best States ------------- Heat Dissipation 35 Energy Generation 10 Energy Capacity 250 Matter Stores 300 Matter Capacity 300 Sight Range 16 Terrain Scan Density 10 Evasion (%) 40 Recoil Reduction 2 Item Schematics ----------------- None Robot Schematics ------------------ None Fabricated ------------ Nothing Repaired ---------- Nothing Studied --------- None Alien Tech Used ----------------- None Achievements -------------- None Challenges ------------ None Game ------ Seed DeepGravitonMicroactuators Manual? 0 Play Time 00:20:20 Cumulative 15.5 hours Start 2026.08.14 @ 14:51:19 End 2026.08.14 @ 15:12:23 Sessions 1 Manual Loads 0 Difficulty Rogue Special Mode None Game No. 14 Rogue 14 Adventurer 0 Explorer 0 Win Type - Total 0 Types 0/0/0/0/0/0/0/0/0/0 Lore% 4 Gallery% 13 Achievement% 13 Wizard Run 0 Options --------- Layout 1 ASCII 0 Keyboard 0 Movement Mouse Keybinds 0 Fullscreen 1 Font 24/Smallcaps Map View 50x35 Zoom Use 0% Tactical HUD 1 Map Filters NONE Filters NONE Steam 1 RUN: ab0e1312-fe94-4c4a-8357-4399fb7f8b01